[Event "*** Titled Tuesday Blitz"]
[Site "Chess.com"]
[Date "2021.03.09"]
[Round "1"]
[White "Zhigalko_Sergei"]
[Black "bazar-wokzal"]
[Result "1-0"]
[WhiteElo "2930"]
[BlackElo "2470"]
[TimeControl "180+1"]
[EndTime "10:07:26 PST"]
[Termination "Zhigalko_Sergei won on time"]

1. e4 {[%clk 0:03:00.9]} 1... c5 {[%clk 0:02:58.2]} 2. Nf3 {[%clk 0:03:00.8]}
2... d6 {[%clk 0:02:58.1]} 3. d4 {[%clk 0:03:00.7]} 3... cxd4 {[%clk 0:02:58.2]}
4. Qxd4 {[%clk 0:03:00.2]} 4... Nc6 {[%clk 0:02:54]} 5. Bb5 {[%clk 0:03:00]}
5... a6 {[%clk 0:02:54]} 6. Bxc6+ {[%clk 0:02:59.9]} 6... bxc6 {[%clk
0:02:54.9]} 7. c4 {[%clk 0:03:00.6]} 7... e5 {[%clk 0:02:54.6]} 8. Qd3 {[%clk
0:03:00.7]} 8... Ne7 {[%clk 0:02:54.4]} 9. O-O {[%clk 0:02:55.6]} 9... Ng6
{[%clk 0:02:54.1]} 10. Rd1 {[%clk 0:02:54.6]} 10... Be7 {[%clk 0:02:52.9]} 11.
Nc3 {[%clk 0:02:51.1]} 11... Be6 {[%clk 0:02:52.7]} 12. Be3 {[%clk 0:02:45.8]}
12... O-O {[%clk 0:02:51.1]} 13. b3 {[%clk 0:02:22]} 13... f5 {[%clk 0:02:43.9]}
14. h3 {[%clk 0:02:04]} 14... fxe4 {[%clk 0:02:16.8]} 15. Nxe4 {[%clk
0:02:00.1]} 15... Bxh3 {[%clk 0:02:07.3]} 16. Nxd6 {[%clk 0:01:53.9]} 16... Bg4
{[%clk 0:02:02.5]} 17. c5 {[%clk 0:01:49.8]} 17... Bxf3 {[%clk 0:01:42.5]} 18.
gxf3 {[%clk 0:01:49.9]} 18... Kh8 {[%clk 0:01:27.7]} 19. Qe4 {[%clk 0:01:44.3]}
19... Bxd6 {[%clk 0:01:16.5]} 20. Rxd6 {[%clk 0:01:43.5]} 20... Qe7 {[%clk
0:00:59.7]} 21. Kf1 {[%clk 0:00:36.1]} 21... Nh4 {[%clk 0:00:41.1]} 22. Ke2
{[%clk 0:00:33.3]} 22... Nf5 {[%clk 0:00:12.9]} 23. Rh1 {[%clk 0:00:28.8]} 23...
Rae8 {[%clk 0:00:09.2]} 24. Rxc6 {[%clk 0:00:22.9]} 24... g6 {[%clk 0:00:04.8]}
25. Rxg6 {[%clk 0:00:20.6]} 25... Nd4+ {[%clk 0:00:04.4]} 26. Kf1 {[%clk
0:00:07.8]} 26... Nxf3 {[%clk 0:00:04]} 27. Rgh6 {[%clk 0:00:07.5]} 27... Rf7
{[%clk 0:00:03.9]} 28. R1h3 {[%clk 0:00:04.8]} 28... Ref8 {[%clk 0:00:03.8]} 29.
c6 {[%clk 0:00:05.2]} 29... Nd2+ {[%clk 0:00:03.4]} 30. Bxd2 {[%clk 0:00:04.7]}
30... Rxf2+ {[%clk 0:00:03.7]} 31. Ke1 {[%clk 0:00:04.8]} 31... Rf1+ {[%clk
0:00:03.7]} 32. Ke2 {[%clk 0:00:05.4]} 32... R8f2+ {[%clk 0:00:04]} 33. Kd3
{[%clk 0:00:05]} 33... Qd8+ {[%clk 0:00:04.4]} 34. Kc4 {[%clk 0:00:04.9]} 1-0

[Event "*** Titled Tuesday Blitz"]
[Site "Chess.com"]
[Date "2021.03.09"]
[Round "1"]
[White "beautroll"]
[Black "exoticprincess"]
[Result "0-1"]
[WhiteElo "2453"]
[BlackElo "2879"]
[TimeControl "180+1"]
[EndTime "10:07:26 PST"]
[Termination "exoticprincess won by resignation"]

1. e4 {[%clk 0:03:00.9]} 1... c6 {[%clk 0:02:56.1]} 2. d4 {[%clk 0:03:00]} 2...
d5 {[%clk 0:02:57]} 3. e5 {[%clk 0:02:59.4]} 3... Bf5 {[%clk 0:02:56.3]} 4. Nc3
{[%clk 0:02:59.6]} 4... e6 {[%clk 0:02:55.3]} 5. g4 {[%clk 0:02:59.8]} 5... Bg6
{[%clk 0:02:54.9]} 6. Nge2 {[%clk 0:03:00]} 6... Ne7 {[%clk 0:02:53.3]} 7. Nf4
{[%clk 0:02:57.8]} 7... Nd7 {[%clk 0:02:50.1]} 8. h4 {[%clk 0:02:56.3]} 8... h5
{[%clk 0:02:49.9]} 9. Nxg6 {[%clk 0:02:54.3]} 9... Nxg6 {[%clk 0:02:50.8]} 10.
gxh5 {[%clk 0:02:35.1]} 10... Nxh4 {[%clk 0:02:46.1]} 11. Bd3 {[%clk 0:02:34]}
11... c5 {[%clk 0:02:44.9]} 12. Qg4 {[%clk 0:02:20.8]} 12... cxd4 {[%clk
0:02:42.3]} 13. Rxh4 {[%clk 0:01:58.4]} 13... dxc3 {[%clk 0:02:36.1]} 14. bxc3
{[%clk 0:01:59.3]} 14... Nxe5 {[%clk 0:02:25.7]} 15. Bb5+ {[%clk 0:01:56.2]}
15... Nc6 {[%clk 0:02:25.6]} 16. Bd2 {[%clk 0:01:44.4]} 16... Rc8 {[%clk
0:02:20.7]} 17. Kf1 {[%clk 0:01:39.8]} 17... a6 {[%clk 0:02:12.3]} 18. Bd3
{[%clk 0:01:27.3]} 18... Ne5 {[%clk 0:01:59.7]} 19. Qg3 {[%clk 0:01:23.4]} 19...
Nxd3 {[%clk 0:01:56.8]} 20. cxd3 {[%clk 0:01:24.3]} 20... Be7 {[%clk 0:01:52.2]}
21. Rg4 {[%clk 0:01:22.9]} 21... Rxh5 {[%clk 0:01:44.3]} 22. Kg2 {[%clk
0:01:18.1]} 22... Bf6 {[%clk 0:01:41.8]} 23. Re1 {[%clk 0:01:09.5]} 23... Qc7
{[%clk 0:01:37]} 24. f4 {[%clk 0:01:00.7]} 24... Qc6 {[%clk 0:01:23.8]} 25. d4
{[%clk 0:00:38.9]} 25... Kd7 {[%clk 0:01:16.2]} 26. Rxg7 {[%clk 0:00:33.5]}
26... Bxg7 {[%clk 0:01:15.1]} 27. Qxg7 {[%clk 0:00:34.3]} 27... Rf5 {[%clk
0:01:15.6]} 28. Re5 {[%clk 0:00:30.8]} 28... Ke7 {[%clk 0:00:57.4]} 29. Be1
{[%clk 0:00:28.1]} 29... Qd7 {[%clk 0:00:34.1]} 30. Bh4+ {[%clk 0:00:26.9]}
30... Kd6 {[%clk 0:00:34.2]} 31. Qh6 {[%clk 0:00:11.9]} 31... Rxe5 {[%clk
0:00:29.6]} 32. fxe5+ {[%clk 0:00:11.8]} 32... Kc7 {[%clk 0:00:29.8]} 33. Qc1
{[%clk 0:00:07.4]} 33... Kb8 {[%clk 0:00:29.8]} 34. Qa3 {[%clk 0:00:07.2]} 34...
Ka8 {[%clk 0:00:29]} 35. Be7 {[%clk 0:00:07.1]} 35... Rg8+ {[%clk 0:00:25.8]}
36. Kf3 {[%clk 0:00:07]} 36... Qb5 {[%clk 0:00:26.7]} 37. Kf2 {[%clk 0:00:04.5]}
37... Qd3 {[%clk 0:00:25.5]} 38. Bh4 {[%clk 0:00:03.3]} 38... Qd2+ {[%clk
0:00:24.8]} 39. Kf3 {[%clk 0:00:03.3]} 39... Qg2+ {[%clk 0:00:25.7]} 40. Ke3
{[%clk 0:00:03.7]} 40... Qh3+ {[%clk 0:00:25.3]} 0-1

[Event "*** Titled Tuesday Blitz"]
[Site "Chess.com"]
[Date "2021.03.09"]
[Round "1"]
[White "Shahaliyev"]
[Black "Kurkusha"]
[Result "1-0"]
[WhiteElo "2636"]
[BlackElo "2338"]
[TimeControl "180+1"]
[EndTime "10:07:27 PST"]
[Termination "Shahaliyev won by checkmate"]

1. e4 {[%clk 0:03:00.9]} 1... e5 {[%clk 0:02:59.8]} 2. Nf3 {[%clk 0:03:00.8]}
2... Nc6 {[%clk 0:02:58.5]} 3. Bb5 {[%clk 0:03:01]} 3... Nf6 {[%clk 0:02:58.3]}
4. d3 {[%clk 0:03:01.2]} 4... Bc5 {[%clk 0:02:57.9]} 5. c3 {[%clk 0:02:59.7]}
5... O-O {[%clk 0:02:56.6]} 6. Nbd2 {[%clk 0:03:00]} 6... d6 {[%clk 0:02:55.5]}
7. O-O {[%clk 0:02:59.6]} 7... Bb6 {[%clk 0:02:54.1]} 8. Bxc6 {[%clk 0:02:58.2]}
8... bxc6 {[%clk 0:02:54]} 9. Nc4 {[%clk 0:02:58.9]} 9... Be6 {[%clk 0:02:42.7]}
10. Ne3 {[%clk 0:02:50.4]} 10... Re8 {[%clk 0:02:35.2]} 11. a4 {[%clk
0:02:50.8]} 11... a5 {[%clk 0:02:34.4]} 12. Re1 {[%clk 0:02:50.2]} 12... Rb8
{[%clk 0:02:32.1]} 13. h3 {[%clk 0:02:48.5]} 13... Bc5 {[%clk 0:02:31.2]} 14.
Nc2 {[%clk 0:02:46.8]} 14... Bb3 {[%clk 0:02:30.2]} 15. Qe2 {[%clk 0:02:46.7]}
15... d5 {[%clk 0:02:11.4]} 16. Bg5 {[%clk 0:02:46.8]} 16... h6 {[%clk
0:02:06.7]} 17. Bh4 {[%clk 0:02:46.7]} 17... dxe4 {[%clk 0:02:01.5]} 18. dxe4
{[%clk 0:02:46.1]} 18... Qe7 {[%clk 0:02:01.7]} 19. Ne3 {[%clk 0:02:44.5]} 19...
Qe6 {[%clk 0:01:59]} 20. Nd2 {[%clk 0:02:37.9]} 20... Nd7 {[%clk 0:01:30.6]} 21.
Nxb3 {[%clk 0:02:27.4]} 21... Qxb3 {[%clk 0:01:25.7]} 22. Nc4 {[%clk 0:02:28.3]}
22... Nf8 {[%clk 0:00:58.8]} 23. Nxa5 {[%clk 0:02:25.6]} 23... Qxb2 {[%clk
0:00:56.9]} 24. Qxb2 {[%clk 0:02:25.8]} 24... Rxb2 {[%clk 0:00:57.2]} 25. Nxc6
{[%clk 0:02:24.7]} 25... Re6 {[%clk 0:00:51.1]} 26. Na5 {[%clk 0:02:23.8]} 26...
Ra6 {[%clk 0:00:50.1]} 27. Nc4 {[%clk 0:02:23.2]} 27... Rc2 {[%clk 0:00:50.3]}
28. Nxe5 {[%clk 0:02:11.6]} 28... Rxc3 {[%clk 0:00:48.7]} 29. Red1 {[%clk
0:01:44.2]} 29... f6 {[%clk 0:00:42.1]} 30. Nd3 {[%clk 0:01:40.7]} 30... Ne6
{[%clk 0:00:34.2]} 31. Rac1 {[%clk 0:01:34.4]} 31... Bd4 {[%clk 0:00:26.7]} 32.
Rxc3 {[%clk 0:01:30.6]} 32... Bxc3 {[%clk 0:00:27.6]} 33. Rc1 {[%clk 0:01:30.8]}
33... Bd4 {[%clk 0:00:28]} 34. Rc4 {[%clk 0:01:30.4]} 34... c5 {[%clk
0:00:27.7]} 35. Kh2 {[%clk 0:01:15]} 35... Kf7 {[%clk 0:00:26.7]} 36. f4 {[%clk
0:01:14.7]} 36... g5 {[%clk 0:00:24.4]} 37. fxg5 {[%clk 0:01:01.5]} 37... hxg5
{[%clk 0:00:25.3]} 38. Bf2 {[%clk 0:01:02.1]} 38... Bxf2 {[%clk 0:00:24.2]} 39.
Nxf2 {[%clk 0:01:03]} 39... Ke7 {[%clk 0:00:24.5]} 40. Ng4 {[%clk 0:01:01.8]}
40... Ra5 {[%clk 0:00:23.1]} 41. g3 {[%clk 0:01:00.2]} 41... Nd4 {[%clk
0:00:23]} 42. h4 {[%clk 0:00:58.3]} 42... gxh4 {[%clk 0:00:21.5]} 43. gxh4
{[%clk 0:00:59.2]} 43... Kf7 {[%clk 0:00:21.8]} 44. Kg3 {[%clk 0:00:57.7]} 44...
Kg6 {[%clk 0:00:21.8]} 45. Nf2 {[%clk 0:00:52.2]} 45... f5 {[%clk 0:00:20.4]}
46. e5 {[%clk 0:00:51.8]} 46... Ne6 {[%clk 0:00:20.1]} 47. Nd3 {[%clk
0:00:50.8]} 47... Kh5 {[%clk 0:00:13.8]} 48. Nf4+ {[%clk 0:00:46.8]} 48... Nxf4
{[%clk 0:00:13.8]} 49. Kxf4 {[%clk 0:00:47.7]} 49... Kg6 {[%clk 0:00:14.4]} 50.
h5+ {[%clk 0:00:46.4]} 50... Kxh5 {[%clk 0:00:12.9]} 51. Kxf5 {[%clk 0:00:47.3]}
51... Kh6 {[%clk 0:00:12.5]} 52. Kf6 {[%clk 0:00:47.1]} 52... Ra8 {[%clk
0:00:06.8]} 53. Rh4# {[%clk 0:00:46.5]} 1-0

[Event "*** Titled Tuesday Blitz"]
[Site "Chess.com"]
[Date "2021.03.09"]
[Round "1"]
[White "Promacherr"]
[Black "SameerMujumdar"]
[Result "0-1"]
[WhiteElo "2613"]
[BlackElo "2345"]
[TimeControl "180+1"]
[EndTime "10:07:27 PST"]
[Termination "SameerMujumdar won by resignation"]

1. d4 {[%clk 0:03:00.9]} 1... Nf6 {[%clk 0:02:56.2]} 2. Nf3 {[%clk 0:03:01.3]}
2... g6 {[%clk 0:02:55.4]} 3. Bg5 {[%clk 0:03:01]} 3... Bg7 {[%clk 0:02:55.7]}
4. Nbd2 {[%clk 0:03:01]} 4... O-O {[%clk 0:02:55]} 5. c3 {[%clk 0:03:01.3]} 5...
d6 {[%clk 0:02:54.8]} 6. e4 {[%clk 0:03:01.7]} 6... Nbd7 {[%clk 0:02:54.4]} 7.
Be2 {[%clk 0:03:01.7]} 7... e5 {[%clk 0:02:54.5]} 8. dxe5 {[%clk 0:03:02.6]}
8... dxe5 {[%clk 0:02:53.5]} 9. O-O {[%clk 0:03:02.6]} 9... c6 {[%clk
0:02:53.1]} 10. Re1 {[%clk 0:03:03]} 10... Qc7 {[%clk 0:02:52.8]} 11. Bf1 {[%clk
0:03:02.5]} 11... Re8 {[%clk 0:02:50.6]} 12. Nc4 {[%clk 0:03:01.4]} 12... Nb6
{[%clk 0:02:41.5]} 13. Ncxe5 {[%clk 0:02:42.7]} 13... Rxe5 {[%clk 0:02:40]} 14.
Nxe5 {[%clk 0:02:43.6]} 14... Qxe5 {[%clk 0:02:39.7]} 15. Qd8+ {[%clk
0:02:43.7]} 15... Ne8 {[%clk 0:02:27.5]} 16. f4 {[%clk 0:02:32.3]} 16... Qc5+
{[%clk 0:02:26.5]} 17. Kh1 {[%clk 0:02:32.2]} 17... Be6 {[%clk 0:02:03.6]} 18.
Qe7 {[%clk 0:02:25.5]} 18... Qxe7 {[%clk 0:02:01.4]} 19. Bxe7 {[%clk 0:02:26.4]}
19... Bf8 {[%clk 0:01:56]} 20. Bxf8 {[%clk 0:02:26]} 20... Kxf8 {[%clk
0:01:56.9]} 21. b3 {[%clk 0:02:25.1]} 21... Rd8 {[%clk 0:01:56.1]} 22. Rad1
{[%clk 0:02:24.7]} 22... Rxd1 {[%clk 0:01:56.6]} 23. Rxd1 {[%clk 0:02:25.6]}
23... Ke7 {[%clk 0:01:57.1]} 24. Kg1 {[%clk 0:02:26]} 24... f5 {[%clk
0:01:56.7]} 25. exf5 {[%clk 0:02:19.1]} 25... Bxf5 {[%clk 0:01:55.8]} 26. c4
{[%clk 0:02:19.4]} 26... Nf6 {[%clk 0:01:52.5]} 27. Kf2 {[%clk 0:02:15.6]} 27...
Nbd7 {[%clk 0:01:48.2]} 28. h3 {[%clk 0:02:14]} 28... h5 {[%clk 0:01:48.2]} 29.
Kf3 {[%clk 0:02:10.9]} 29... Nc5 {[%clk 0:01:45.9]} 30. Ke3 {[%clk 0:02:04.1]}
30... a5 {[%clk 0:01:43.9]} 31. Be2 {[%clk 0:01:59.6]} 31... Ne6 {[%clk
0:01:41.5]} 32. a3 {[%clk 0:01:49.5]} 32... c5 {[%clk 0:01:34.2]} 33. Bf3 {[%clk
0:01:45.1]} 33... b6 {[%clk 0:01:34.4]} 34. Rd2 {[%clk 0:01:10.1]} 34... Nd4
{[%clk 0:01:34]} 35. Bd1 {[%clk 0:01:08.5]} 35... Ne4 {[%clk 0:01:32.2]} 36. Rb2
{[%clk 0:00:59.5]} 36... Nc3 {[%clk 0:01:30.1]} 37. Bf3 {[%clk 0:00:54.8]} 37...
h4 {[%clk 0:01:23.6]} 38. b4 {[%clk 0:00:48.7]} 38... Na4 {[%clk 0:01:21.3]} 39.
Rd2 {[%clk 0:00:21.3]} 39... axb4 {[%clk 0:01:17.8]} 40. axb4 {[%clk 0:00:20.5]}
40... Nc2+ {[%clk 0:01:17.7]} 41. Kf2 {[%clk 0:00:18.8]} 41... Nxb4 {[%clk
0:01:17.8]} 42. Re2+ {[%clk 0:00:19]} 42... Kf7 {[%clk 0:01:15.1]} 43. g4 {[%clk
0:00:11.1]} 43... hxg3+ {[%clk 0:01:14.6]} 44. Kxg3 {[%clk 0:00:11.6]} 44... Nc3
{[%clk 0:01:15.2]} 45. Re3 {[%clk 0:00:09.6]} 45... Nb1 {[%clk 0:01:02]} 46. Bg4
{[%clk 0:00:08]} 46... Nd2 {[%clk 0:00:59.4]} 47. Re5 {[%clk 0:00:03.1]} 47...
Nxc4 {[%clk 0:00:57.8]} 48. Re1 {[%clk 0:00:03.1]} 48... Nd3 {[%clk 0:00:56.4]}
49. Ra1 {[%clk 0:00:03.2]} 49... Kf6 {[%clk 0:00:54.7]} 50. Ra7 {[%clk
0:00:03.8]} 50... b5 {[%clk 0:00:53.9]} 51. Rc7 {[%clk 0:00:03]} 51... b4 {[%clk
0:00:53.5]} 52. Rc6+ {[%clk 0:00:03.5]} 52... Kf7 {[%clk 0:00:53.9]} 53. Kh4
{[%clk 0:00:03.2]} 53... b3 {[%clk 0:00:49.9]} 54. Kg5 {[%clk 0:00:03.1]} 54...
b2 {[%clk 0:00:48]} 55. Rc7+ {[%clk 0:00:03.2]} 55... Ke6 {[%clk 0:00:48.2]} 56.
Bxf5+ {[%clk 0:00:02.2]} 56... gxf5 {[%clk 0:00:48.7]} 57. Rb7 {[%clk
0:00:02.8]} 57... Nb4 {[%clk 0:00:48.5]} 0-1

[Event "*** Titled Tuesday Blitz"]
[Site "Chess.com"]
[Date "2021.03.09"]
[Round "1"]
[White "ChristopherYoo"]
[Black "Zorbos"]
[Result "1-0"]
[WhiteElo "2925"]
[BlackElo "2469"]
[TimeControl "180+1"]
[EndTime "10:07:28 PST"]
[Termination "ChristopherYoo won by checkmate"]

1. d4 {[%clk 0:02:50.6]} 1... Nf6 {[%clk 0:02:59]} 2. Nf3 {[%clk 0:02:50.2]}
2... g6 {[%clk 0:02:57.1]} 3. c4 {[%clk 0:02:50.1]} 3... Bg7 {[%clk 0:02:52.1]}
4. Nc3 {[%clk 0:02:49.9]} 4... O-O {[%clk 0:02:46.8]} 5. Bg5 {[%clk 0:02:48.8]}
5... d6 {[%clk 0:02:47.7]} 6. Qd2 {[%clk 0:02:48.6]} 6... a6 {[%clk 0:02:41.7]}
7. e4 {[%clk 0:02:47.4]} 7... c5 {[%clk 0:02:34]} 8. d5 {[%clk 0:02:46.9]} 8...
e6 {[%clk 0:02:30.9]} 9. Be2 {[%clk 0:02:42.2]} 9... exd5 {[%clk 0:02:30.6]} 10.
exd5 {[%clk 0:02:41.6]} 10... Bg4 {[%clk 0:02:28.1]} 11. O-O {[%clk 0:02:39.9]}
11... Bxf3 {[%clk 0:02:28.4]} 12. Bxf3 {[%clk 0:02:39.5]} 12... Nbd7 {[%clk
0:02:21.2]} 13. Rfe1 {[%clk 0:02:16.7]} 13... Qb6 {[%clk 0:01:55.9]} 14. Rab1
{[%clk 0:02:04.3]} 14... Rae8 {[%clk 0:01:53.9]} 15. Bf4 {[%clk 0:01:53.2]}
15... Rxe1+ {[%clk 0:01:42.1]} 16. Rxe1 {[%clk 0:01:52.3]} 16... Re8 {[%clk
0:01:41.9]} 17. Rd1 {[%clk 0:01:11.8]} 17... Ne5 {[%clk 0:01:38.3]} 18. Be2
{[%clk 0:01:11]} 18... Qb4 {[%clk 0:01:35.9]} 19. b3 {[%clk 0:01:07.7]} 19... h5
{[%clk 0:01:23.3]} 20. Qc1 {[%clk 0:00:51]} 20... Qb6 {[%clk 0:01:17]} 21. Bf1
{[%clk 0:00:47.3]} 21... Qd8 {[%clk 0:01:06.9]} 22. h3 {[%clk 0:00:43.9]} 22...
Nh7 {[%clk 0:00:52.3]} 23. Re1 {[%clk 0:00:42]} 23... f5 {[%clk 0:00:49.7]} 24.
Qd2 {[%clk 0:00:22.6]} 24... Nf7 {[%clk 0:00:44.8]} 25. Rd1 {[%clk 0:00:18.5]}
25... g5 {[%clk 0:00:43]} 26. Bh2 {[%clk 0:00:18.2]} 26... Qf6 {[%clk
0:00:36.8]} 27. Rc1 {[%clk 0:00:14.6]} 27... f4 {[%clk 0:00:32.9]} 28. Bd3
{[%clk 0:00:13.4]} 28... Qd4 {[%clk 0:00:31.2]} 29. Bxh7+ {[%clk 0:00:08.6]}
29... Kxh7 {[%clk 0:00:31.1]} 30. Qc2+ {[%clk 0:00:09.3]} 30... Kh6 {[%clk
0:00:29.6]} 31. h4 {[%clk 0:00:05.2]} 31... Qxc3 {[%clk 0:00:16.8]} 32. hxg5+
{[%clk 0:00:03.7]} 32... Kxg5 {[%clk 0:00:17.4]} 33. Bxf4+ {[%clk 0:00:01.8]}
33... Kxf4 {[%clk 0:00:13.6]} 34. Qd1 {[%clk 0:00:02.2]} 34... Qe5 {[%clk
0:00:11.6]} 35. Qf3+ {[%clk 0:00:01.8]} 35... Kg5 {[%clk 0:00:12.2]} 36. Qxf7
{[%clk 0:00:02.6]} 36... Re7 {[%clk 0:00:09.9]} 37. f4+ {[%clk 0:00:02.1]} 37...
Kh4 {[%clk 0:00:07.5]} 38. Qg6 {[%clk 0:00:01.4]} 38... Qe3+ {[%clk 0:00:05.4]}
39. Kh2 {[%clk 0:00:01.1]} 39... Qxf4+ {[%clk 0:00:05.6]} 40. g3+ {[%clk
0:00:01.5]} 40... Qxg3+ {[%clk 0:00:05.9]} 41. Qxg3# {[%clk 0:00:02.4]} 1-0

[Event "*** Titled Tuesday Blitz"]
[Site "Chess.com"]
[Date "2021.03.09"]
[Round "1"]
[White "ram1zan"]
[Black "MustafayevFarid2004"]
[Result "1-0"]
[WhiteElo "2823"]
[BlackElo "2431"]
[TimeControl "180+1"]
[EndTime "10:07:28 PST"]
[Termination "ram1zan won on time"]

1. e4 {[%clk 0:03:00.9]} 1... c6 {[%clk 0:02:57.9]} 2. d4 {[%clk 0:03:00.5]}
2... d5 {[%clk 0:02:57.9]} 3. exd5 {[%clk 0:03:01.4]} 3... cxd5 {[%clk
0:02:58.8]} 4. Bd3 {[%clk 0:03:01.8]} 4... Nc6 {[%clk 0:02:59.1]} 5. c3 {[%clk
0:03:02]} 5... Nf6 {[%clk 0:03:00]} 6. h3 {[%clk 0:03:01.5]} 6... g6 {[%clk
0:02:59.5]} 7. Qc2 {[%clk 0:03:01.4]} 7... Bg7 {[%clk 0:02:59.7]} 8. Nf3 {[%clk
0:03:01.6]} 8... O-O {[%clk 0:02:59.9]} 9. O-O {[%clk 0:03:02.3]} 9... b6 {[%clk
0:02:56.9]} 10. Re1 {[%clk 0:03:02]} 10... Qc7 {[%clk 0:02:54.4]} 11. Be3 {[%clk
0:02:27.8]} 11... Bd7 {[%clk 0:02:45.1]} 12. Qc1 {[%clk 0:02:24.2]} 12... Ne4
{[%clk 0:02:39.7]} 13. Bf4 {[%clk 0:02:22.8]} 13... Qb7 {[%clk 0:02:34.5]} 14.
Nbd2 {[%clk 0:02:19]} 14... f5 {[%clk 0:02:31.3]} 15. Nf1 {[%clk 0:02:14.7]}
15... Rac8 {[%clk 0:02:29.4]} 16. Bh6 {[%clk 0:02:11.3]} 16... Qc7 {[%clk
0:01:34.9]} 17. Bf4 {[%clk 0:01:53.6]} 17... Qd8 {[%clk 0:01:31.1]} 18. Qe3
{[%clk 0:01:49.1]} 18... a5 {[%clk 0:01:06.3]} 19. Ng3 {[%clk 0:01:41]} 19... e6
{[%clk 0:00:59.2]} 20. h4 {[%clk 0:01:32.5]} 20... Qe7 {[%clk 0:00:43.2]} 21. h5
{[%clk 0:01:28.1]} 21... Bf6 {[%clk 0:00:36.2]} 22. Bh6 {[%clk 0:01:20.1]} 22...
Rfe8 {[%clk 0:00:30.3]} 23. hxg6 {[%clk 0:01:17.9]} 23... hxg6 {[%clk
0:00:31.2]} 24. Ba6 {[%clk 0:01:13.7]} 24... Rcd8 {[%clk 0:00:24]} 25. Nxe4
{[%clk 0:01:13.9]} 25... fxe4 {[%clk 0:00:22.8]} 26. Ng5 {[%clk 0:01:13.9]}
26... Qd6 {[%clk 0:00:17.4]} 27. Rad1 {[%clk 0:01:07]} 27... Ne7 {[%clk
0:00:15.5]} 28. g4 {[%clk 0:01:00.2]} 28... Rf8 {[%clk 0:00:14.8]} 29. Qh3
{[%clk 0:00:56.2]} 29... Bxg5 {[%clk 0:00:10]} 30. Bxg5 {[%clk 0:00:57.1]} 30...
Rf3 {[%clk 0:00:10.4]} 31. Qh4 {[%clk 0:00:56.9]} 31... Rf7 {[%clk 0:00:07.8]}
32. Re3 {[%clk 0:00:56.5]} 32... Kf8 {[%clk 0:00:05.1]} 33. Rh3 {[%clk
0:00:55.9]} 33... Ra8 {[%clk 0:00:04.9]} 34. Be2 {[%clk 0:00:51.9]} 34... Ng8
{[%clk 0:00:04.1]} 35. Rf1 {[%clk 0:00:52.1]} 35... e5 {[%clk 0:00:03.8]} 36.
dxe5 {[%clk 0:00:51.7]} 36... Qxe5 {[%clk 0:00:04.7]} 37. Be3 {[%clk 0:00:50.9]}
37... Qe6 {[%clk 0:00:03.4]} 38. Qg5 {[%clk 0:00:50]} 38... Re8 {[%clk
0:00:03.8]} 39. Bd4 {[%clk 0:00:50.1]} 39... Qe7 {[%clk 0:00:03.7]} 40. Qe3
{[%clk 0:00:45.1]} 40... Qe6 {[%clk 0:00:04.6]} 41. Bxb6 {[%clk 0:00:44.6]}
41... Qc6 {[%clk 0:00:03.8]} 42. Bc5+ {[%clk 0:00:44.7]} 42... Kg7 {[%clk
0:00:04.3]} 43. Bd4+ {[%clk 0:00:45.1]} 43... Kf8 {[%clk 0:00:04.4]} 44. Qg5
{[%clk 0:00:45]} 44... Qe6 {[%clk 0:00:04.4]} 45. f4 {[%clk 0:00:41.8]} 45...
exf3 {[%clk 0:00:04.4]} 46. Rhxf3 {[%clk 0:00:42.4]} 46... Re7 {[%clk
0:00:02.6]} 47. Bc5 {[%clk 0:00:40.6]} 47... Qxe2 {[%clk 0:00:02.6]} 48. Rxf7+
{[%clk 0:00:40.6]} 1-0

[Event "*** Titled Tuesday Blitz"]
[Site "Chess.com"]
[Date "2021.03.09"]
[Round "1"]
[White "TorFredrikKaasen"]
[Black "Chernov_Mikhail"]
[Result "1-0"]
[WhiteElo "2706"]
[BlackElo "2381"]
[TimeControl "180+1"]
[EndTime "10:07:28 PST"]
[Termination "TorFredrikKaasen won on time"]

1. e4 {[%clk 0:02:51.8]} 1... c5 {[%clk 0:02:59.7]} 2. Nf3 {[%clk 0:02:51.9]}
2... Nc6 {[%clk 0:02:59.7]} 3. Nc3 {[%clk 0:02:51.6]} 3... d6 {[%clk 0:02:59.3]}
4. d4 {[%clk 0:02:50.4]} 4... cxd4 {[%clk 0:03:00.2]} 5. Nxd4 {[%clk 0:02:51]}
5... Nf6 {[%clk 0:03:00.9]} 6. Bc4 {[%clk 0:02:50.8]} 6... e6 {[%clk 0:03:01.1]}
7. Bb3 {[%clk 0:02:50.7]} 7... a6 {[%clk 0:03:01.5]} 8. Be3 {[%clk 0:02:49.6]}
8... Qc7 {[%clk 0:03:02.1]} 9. f4 {[%clk 0:02:44]} 9... Na5 {[%clk 0:02:50.6]}
10. O-O {[%clk 0:02:34.7]} 10... Nc4 {[%clk 0:02:47.9]} 11. Bc1 {[%clk 0:02:06]}
11... b5 {[%clk 0:02:39.3]} 12. Qd3 {[%clk 0:02:05.6]} 12... Qc5 {[%clk
0:02:26.3]} 13. Kh1 {[%clk 0:02:04.7]} 13... Bb7 {[%clk 0:02:20.6]} 14. a4
{[%clk 0:01:53.1]} 14... e5 {[%clk 0:01:56.5]} 15. Nf5 {[%clk 0:01:27.7]} 15...
Rc8 {[%clk 0:01:42.6]} 16. axb5 {[%clk 0:01:27.2]} 16... axb5 {[%clk 0:01:43.5]}
17. Ne3 {[%clk 0:01:12.7]} 17... exf4 {[%clk 0:01:21.9]} 18. Rxf4 {[%clk
0:01:09]} 18... Be7 {[%clk 0:01:20.2]} 19. Nf5 {[%clk 0:01:05.3]} 19... b4
{[%clk 0:00:53.5]} 20. Nd5 {[%clk 0:00:29.8]} 20... Nxd5 {[%clk 0:00:45.6]} 21.
Nxg7+ {[%clk 0:00:28.7]} 21... Kd7 {[%clk 0:00:29.3]} 22. exd5 {[%clk
0:00:28.4]} 22... Ne5 {[%clk 0:00:28.8]} 23. Qh3+ {[%clk 0:00:28.5]} 23... Kc7
{[%clk 0:00:27.9]} 24. Be3 {[%clk 0:00:29.1]} 24... Qb5 {[%clk 0:00:24.3]} 25.
Nf5 {[%clk 0:00:24.9]} 25... Bg5 {[%clk 0:00:20.6]} 26. Nd4 {[%clk 0:00:24.4]}
26... Qc5 {[%clk 0:00:08.4]} 27. Ne6+ {[%clk 0:00:23.7]} 27... fxe6 {[%clk
0:00:09.3]} 28. Bxc5 {[%clk 0:00:24.2]} 28... Bxf4 {[%clk 0:00:09.9]} 29. Bxd6+
{[%clk 0:00:18.7]} 29... Kxd6 {[%clk 0:00:07.1]} 30. Qxe6+ {[%clk 0:00:18.8]}
30... Kc7 {[%clk 0:00:07.8]} 31. Ra7 {[%clk 0:00:11.1]} 31... Kb8 {[%clk
0:00:06.6]} 32. Qb6 {[%clk 0:00:09.7]} 32... Rc7 {[%clk 0:00:06]} 33. d6 {[%clk
0:00:10.3]} 33... Rd7 {[%clk 0:00:04.2]} 34. Bd5 {[%clk 0:00:10.7]} 34... Nc6
{[%clk 0:00:02.1]} 35. Bxc6 {[%clk 0:00:08.8]} 35... Re8 {[%clk 0:00:03]} 36.
Rxb7+ {[%clk 0:00:08.9]} 1-0